fUSD/lending_fUSD_20251227
["ID","MTS","AMOUNT","RATE_DAILY","PERIOD"]
[399901121,1766835053085,-200.0,0.00038104,2]
[399901122,1766835053095,-200.0,0.00038104,2]
[399901123,1766835053105,-200.0,0.00038104,2]
[399901124,1766835053115,-200.0,0.00038104,2]
[399901125,1766835053125,-200.0,0.00038104,2]
[399901126,1766835053135,-200.0,0.00038104,2]
[399901127,1766835053145,-200.0,0.00038104,2]
[399901128,1766835053155,-200.0,0.00038104,2]
[399901129,1766835053165,-200.0,0.00038104,2]
[399901130,1766835053174,-200.0,0.00038104,2]
[399901131,1766835053184,-200.0,0.00038104,2]
[399901132,1766835053194,-200.0,0.00038104,2]
[399901133,1766835053204,-200.0,0.00038104,2]
[399901134,1766835053213,-200.0,0.00038104,2]
[399901135,1766835053223,-200.0,0.00038104,2]
[399901136,1766835053233,-200.0,0.00038104,2]
[399901137,1766835053242,-200.0,0.00038104,2]
[399901138,1766835053251,-200.0,0.00038104,2]
[399901139,1766835053262,-200.0,0.00038104,2]
[399901140,1766835053272,-200.0,0.00038104,2]
[399901141,1766835053282,-200.0,0.00038104,2]
[399901142,1766835053292,-200.0,0.00038104,2]
[399901143,1766835053301,-200.0,0.00038104,2]
[399901144,1766835053312,-200.0,0.00038104,2]
[399901145,1766835053322,-200.0,0.00038104,2]
[399901146,1766835053333,-200.0,0.00038104,2]
[399901147,1766835053343,-152.0,0.00038104,2]
[399901148,1766835053356,-500.0,0.00038115,30]
[399901149,1766835053367,-900.0,0.00038168,20]
[399901150,1766835053377,-500.0,0.00038178,14]
[399901151,1766835053387,-500.0,0.00038178,14]
[399901152,1766835053397,-600.0,0.00038178,14]
[399901153,1766835053407,-177.32707689,0.000383,30]
[399901154,1766835053416,-500.0,0.00038356,9]
[399901155,1766835053427,-500.0,0.00038356,9]
[399901156,1766835053439,-759.91,0.00038356,9]
[399901157,1766835053449,-1457.7,0.00038356,9]
[399901158,1766835053459,-641.51,0.00038356,9]
[399901159,1766835053469,-622.76,0.00038356,9]
[399901160,1766835053479,-576.45,0.00038356,9]
[399901161,1766835053490,-500.0,0.00038356,9]
[399901162,1766835053504,-1460.78,0.00038356,9]
[399901163,1766835053514,-443.79217076,0.0003837,30]
[399901164,1766835053526,-25000.0,0.00038382,10]
[399901165,1766835053535,-546.88,0.00038389,30]
[399901166,1766835053546,-25000.0,0.00038391,10]
[399901167,1766835053556,-20557.39516254,0.00038391,10]
[399901168,1766835053566,-304.19847285,0.00038393,2]
[399901169,1766835053577,-367.89553156,0.00038393,2]
[399901170,1766835053587,-595.09007448,0.00038393,2]
[399901171,1766835053597,-300.0,0.00038393,2]
[399901172,1766835053607,-303.03037179,0.00038393,2]
[399901173,1766835053617,-577.27091358,0.00038393,2]
[399901174,1766835053627,-1082.41756512,0.00038393,2]
[399901175,1766835053638,-304.19847285,0.00038393,2]
[399901176,1766835053647,-519.82543448,0.00038393,2]
[399901177,1766835053657,-303.41540829,0.00038393,2]
[399901178,1766835053667,-595.09007448,0.00038393,2]
[399901179,1766835053677,-363.99471825,0.00038393,2]
[399901180,1766835053687,-300.0,0.00038393,2]
[399901181,1766835053697,-303.03037179,0.00038393,2]
[399901182,1766835053707,-577.27091358,0.00038393,2]
[399901183,1766835053717,-1082.41756512,0.00038393,2]
[399901184,1766835053726,-304.19847285,0.00038393,2]
[399901185,1766835053736,-303.41540829,0.00038393,2]
[399901186,1766835053745,-595.09007448,0.00038393,2]
[399901187,1766835053755,-363.99471825,0.00038393,2]
[399901188,1766835053765,-393.80125717,0.00038393,2]
[399901189,1766835053775,-303.03037179,0.00038393,2]
[399901190,1766835053785,-577.27091358,0.00038393,2]
[399901191,1766835053795,-1082.41756512,0.00038393,2]
[399901192,1766835053805,-304.19847285,0.00038393,2]
[399901193,1766835053815,-303.41540829,0.00038393,2]
[399901194,1766835053825,-595.09007448,0.00038393,2]
[399901195,1766835053835,-363.99471825,0.00038393,2]
[399901196,1766835053844,-303.03037179,0.00038393,2]
[399901197,1766835053854,-577.27091358,0.00038393,2]
[399901198,1766835053865,-1082.41756512,0.00038393,2]
[399901199,1766835053875,-304.19847285,0.00038393,2]
[399901200,1766835053885,-303.41540829,0.00038393,2]
[399901201,1766835053900,-595.09007448,0.00038393,2]
[399901202,1766835053910,-363.99471825,0.00038393,2]
[399901203,1766835053920,-303.03037179,0.00038393,2]
[399901204,1766835053930,-577.27091358,0.00038393,2]
[399901205,1766835053940,-1082.41756512,0.00038393,2]
[399901206,1766835053950,-304.19847285,0.00038393,2]
[399901207,1766835053960,-485.08993987,0.00038393,2]
[399901208,1766835053970,-595.09007448,0.00038393,2]
[399901209,1766835053980,-363.99471825,0.00038393,2]
[399901210,1766835053990,-422.02665972,0.00038393,2]
[399901211,1766835054000,-577.27091358,0.00038393,2]
[399901212,1766835054010,-1082.41756512,0.00038393,2]
[399901213,1766835054019,-304.19847285,0.00038393,2]
[399901214,1766835054029,-595.09007448,0.00038393,2]
[399901215,1766835054038,-363.99471825,0.00038393,2]
[399901216,1766835054048,-577.27091358,0.00038393,2]
[399901217,1766835054058,-1082.41756512,0.00038393,2]
[399901218,1766835054068,-417.99490703,0.00038393,2]
[399901219,1766835054078,-595.09007448,0.00038393,2]
[399901220,1766835054088,-363.99471825,0.00038393,2]
[399901221,1766835054098,-577.27091358,0.00038393,2]
[399901222,1766835054108,-1082.41756512,0.00038393,2]
[399901223,1766835054118,-900.0,0.00038561,20]
[399901224,1766835054128,-152.96,0.0003859,2]
[399901225,1766835054138,-161.68,0.00038593,2]
[399901226,1766835054147,-202.0825809,0.0003861,2]
[399901227,1766835054157,-273.10118264,0.0003863,9]
[399901228,1766835054167,-571.74804328,0.0003863,9]
[399901229,1766835054176,-759.91,0.0003863,9]
[399901230,1766835054186,-1457.7,0.0003863,9]
[399901231,1766835054196,-641.51,0.0003863,9]
[399901232,1766835054206,-622.76,0.0003863,9]
[399901233,1766835054216,-576.45,0.0003863,9]
[399901234,1766835054225,-544.95171059,0.0003863,9]
[399901235,1766835054235,-1460.78,0.0003863,9]
[399901236,1766835054245,-164.0,0.0003868,11]
[399901237,1766835054255,-163.0,0.0003868,11]
[399901238,1766835054264,-3403.15401349,0.000387,2]
[399901239,1766835054275,-152.95356912,0.00038792,2]
[399901240,1766835054284,-161.67,0.00038796,2]
[399901241,1766835054293,-174.18,0.000388,14]
[399901242,1766835054302,-822.08,0.000388,14]
[399901243,1766835054312,-1000000.0,0.000388,120]
[399901244,1766835054321,-4134.03398663,0.000388,2]
[399901245,1766835054331,-51077.74597526,0.000388,2]
[399901246,1766835054340,-151.0,0.000388,120]
[399901247,1766835054350,-223.596263,0.000388,120]
[399901248,1766835054363,-151.0,0.000388,120]
[399901249,1766835054372,-235.297556,0.000388,120]
[399901250,1766835054381,-151.0,0.000388,120]
[399901251,1766835054392,-158.626687,0.000388,120]
[399901252,1766835054403,-158.626687,0.000388,120]
[399901253,1766835054413,-158.626687,0.000388,120]
[399901254,1766835054423,-158.626686,0.000388,120]
[399901255,1766835054434,-151.000012,0.000388,120]
[399901256,1766835054444,-2000.0,0.00038805,3]
[399901257,1766835054454,-10965.89558628,0.000389,120]
[399901258,1766835054463,-2011.2,0.000389,60]
[399901259,1766835054473,-889.95849866,0.000389,2]
[399901260,1766835054483,-462.93466944,0.000389,2]
[399901261,1766835054493,-181.26891868,0.000389,2]
[399901262,1766835054502,-759.91,0.00038904,9]
[399901263,1766835054512,-1457.7,0.00038904,9]
[399901264,1766835054522,-641.51,0.00038904,9]
[399901265,1766835054538,-622.76,0.00038904,9]
[399901266,1766835054548,-999.0,0.00038904,120]
[399901267,1766835054557,-576.45,0.00038904,9]
[399901268,1766835054574,-1460.78,0.00038904,9]
[399901269,1766835054587,-2489.34,0.00038904,2]
[399901270,1766835054596,-410.0744158,0.00038913,2]
[399901271,1766835054606,-210.13546521,0.00038915,120]
[399901272,1766835054617,-500.0,0.00038932,30]
[399901273,1766835054628,-500.0,0.00038932,30]
[399901274,1766835054638,-500.0,0.00038932,30]
[399901275,1766835054648,-500.0,0.00038932,30]
[399901276,1766835054658,-553.79598069,0.00038932,30]
[399901277,1766835054667,-900.0,0.00038955,20]
[399901278,1766835054677,-400.0,0.0003897,2]
[399901279,1766835054687,-400.0,0.0003897,2]
[399901280,1766835054696,-400.0,0.0003897,2]
[399901281,1766835054706,-478.10624806,0.0003897,2]
[399901282,1766835054715,-156.74585415,0.00038973,2]
[399901283,1766835054725,-73086.94846223,0.00038995,2]
[399901284,1766835054735,-1501.91914661,0.00038999,30]
[399901285,1766835054745,-150.0,0.00038999,2]
[399901286,1766835054756,-7049.75457231,0.00039,31]
[399901287,1766835054765,-500.0,0.00039,14]
[399901288,1766835054775,-600.0,0.00039,14]
[399901289,1766835054784,-232905.90746186,0.00039,2]
[399901290,1766835054915,-151.0,0.00035616,31]
[399901291,1766835054926,-19849.0,0.00039,2]
[399901292,1766835056126,-1523.38665211,0.00015854,2]
[399901293,1766835056138,-454.57076409,0.00019695,2]
[399901294,1766835056151,-157.65642569,0.00021616,2]
[399901295,1766835056163,-322.39989484,0.0003315,9]
[399901296,1766835056175,-203846.12926865,0.00039,2]
[399901297,1766835056188,-1334.74373388,0.00039,2]
[399901298,1766835056202,-416.48000058,0.00039,2]
[399901360,1766835581029,183.34193887,0.0003,120]
[399901362,1766835661888,153.72,9.259e-05,2]
[399901363,1766835662102,153.72,9.804e-05,2]
[399901364,1766835662318,153.72,0.00010349,2]
[399901365,1766835662710,153.72,0.00010893,2]
[399901366,1766835662910,153.72,0.00011438,2]
[399901367,1766835663136,153.72,0.00011983,2]
[399901368,1766835663550,153.72,0.00012527,2]
[399901380,1766836080628,171.0,0.00030136,120]
[399901381,1766836088492,-153.72,0.00013072,2]
[399901382,1766836088517,-11.16656412,0.00013208,2]
[399901385,1766836208375,-253.0786402,0.00013208,2]
[399901386,1766836213503,-4.9213598,0.00013208,2]
[399901387,1766836213529,-172.11603817,0.00013208,2]
[399901394,1766836231843,-66.71739771,0.00013208,2]
[399901395,1766836231853,-153.72,0.00013617,2]
[399901396,1766836231863,-100.21920994,0.00013699,2]
[399901397,1766836231875,-206.48079006,0.00013699,2]
[399901398,1766836231890,-153.72,0.00014161,2]
[399901399,1766836231900,-265.41863334,0.00014371,2]
[399901400,1766836231911,-934.58136666,0.00014371,2]
[399901401,1766836231920,-97.42480287,0.00014372,2]
[399901402,1766836231936,-202.57519713,0.00014372,2]
[399901403,1766836231945,-150.0,0.00014372,2]
[399901404,1766836231955,-469.36351327,0.00014372,2]
[399901405,1766836231967,-730.63648673,0.00014372,2]
[399901406,1766836231978,-300.0,0.00014372,2]
[399901407,1766836231988,-300.0,0.00014372,2]
[399901408,1766836231997,-494.42708865,0.00014373,2]
[399901409,1766836232012,-5.57291135,0.00014373,2]
[399901410,1766836232021,-223.19036841,0.00014373,2]
[399901411,1766836232031,-467.34872462,0.00014373,2]
[399901412,1766836232043,-32.65127538,0.00014373,2]
[399901413,1766836232053,-500.0,0.00014373,2]
[399901414,1766836232063,-346.29061189,0.00014373,2]
[399901415,1766836232074,-153.70938811,0.00014373,2]
[399901416,1766836232084,-160.2809228,0.00014373,2]
[399901417,1766836232094,-500.0,0.00014373,2]
[399901418,1766836232104,-500.0,0.00014373,2]
[399901419,1766836232113,-500.0,0.00014373,2]
[399901421,1766836232123,-401.39447543,0.00014373,2]
[399901423,1766836232135,-99.38561859,0.00014373,2]
[399901425,1766836232144,-315.69644746,0.00014373,2]
[399901426,1766836232154,-538.67026127,0.00014373,2]
[399901427,1766836232163,-500.0,0.00014373,2]
[399901429,1766836232173,-500.0,0.00014373,2]
[399901431,1766836232183,-318.77837914,0.00014373,2]
[399901433,1766836232193,-501.82675506,0.00014373,2]
[399901435,1766836232202,-216.46901167,0.00014373,2]
[399901436,1766836232212,-500.0,0.00014373,2]
[399901437,1766836232222,-500.0,0.00014373,2]
[399901438,1766836232231,-609.0239433,0.00014373,2]
[399901439,1766836232241,-500.37217927,0.00014373,2]
[399901440,1766836232252,-500.0,0.00014373,2]
[399901441,1766836232266,-646.02,0.00014373,2]
[399901443,1766836232277,-300.0,0.00014379,2]
[399901445,1766836232287,-208.6239108,0.00014379,2]
[399901446,1766836232297,-250.0,0.00014379,2]
[399901447,1766836232307,-193.0,0.00014529,2]
[399901448,1766836232317,-273.70739794,0.00014529,2]
[399901449,1766836232327,-300.0,0.00014529,2]
[399901450,1766836232337,-646.02,0.00014647,2]
[399901451,1766836232346,-153.72,0.00014706,2]
[399901452,1766836232356,-22809.56,0.00014861,2]
[399901453,1766836232365,-500.0,0.00014921,2]
[399901454,1766836232375,-1000.0,0.00014921,2]
[399901455,1766836232385,-500.0,0.00014921,2]
[399901456,1766836232395,-1000.0,0.00014921,2]
[399901457,1766836232404,-385.4280122,0.00014921,2]
[399901458,1766836232414,-1000.0,0.00014921,2]
[399901459,1766836232423,-549.61649395,0.00014921,2]
[399901460,1766836232433,-1000.0,0.00014921,2]
[399901461,1766836232443,-1000.0,0.00014921,2]
[399901462,1766836232452,-1000.0,0.00014921,2]
[399901463,1766836232462,-502.99400047,0.00014921,2]
[399901464,1766836232471,-1000.0,0.00014921,2]
[399901465,1766836232482,-646.02,0.00014921,2]
[399901466,1766836232493,-646.02,0.00015195,2]
[399901467,1766836232503,-1852.42,0.0001524,2]
[399901468,1766836232512,-153.72,0.00015251,2]
[399901469,1766836232522,-114174.19975843,0.00015393,2]
[399901470,1766836232534,-541.46169895,0.00015393,2]
[399901471,1766836232547,-955.4655682,0.00015393,2]
[399901472,1766836232559,-250.0,0.00015393,2]
[399901473,1766836232571,-709.27483164,0.00015393,2]
[399901474,1766836238053,-196.69227023,0.00015392,2]
[399901475,1766836238065,-500.0,0.00015392,2]
[399901476,1766836238076,-500.0,0.00015392,2]
[399901477,1766836238086,-500.0,0.00015392,2]
[399901478,1766836238098,-500.0,0.00015392,2]
[399901479,1766836238109,-500.0,0.00015392,2]
[399901480,1766836238120,-500.0,0.00015392,2]
[399901481,1766836238130,-500.0,0.00015392,2]
[399901482,1766836238141,-500.0,0.00015392,2]
[399901483,1766836238151,-500.0,0.00015392,2]
[399901484,1766836238162,-500.0,0.00015392,2]
[399901485,1766836238173,-273.35993354,0.00015392,2]
[399901486,1766836238184,-500.0,0.00015392,2]
[399901487,1766836238194,-500.0,0.00015392,2]
[399901488,1766836238206,-518.9292569,0.00015392,2]
[399901489,1766836238216,-500.0,0.00015392,2]
[399901490,1766836238226,-500.0,0.00015392,2]
[399901491,1766836238236,-500.0,0.00015392,2]
[399901492,1766836238246,-500.0,0.00015392,2]
[399901493,1766836238256,-500.0,0.00015392,2]
[399901494,1766836238266,-500.0,0.00015392,2]
[399901495,1766836238276,-500.0,0.00015392,2]
[399901496,1766836238286,-500.0,0.00015392,2]
[399901497,1766836238296,-500.0,0.00015392,2]
[399901498,1766836238306,-500.0,0.00015392,2]
[399901499,1766836238316,-500.0,0.00015392,2]
[399901500,1766836238326,-500.0,0.00015392,2]
[399901501,1766836238335,-500.0,0.00015392,2]
[399901502,1766836238345,-500.0,0.00015392,2]
[399901503,1766836238354,-500.0,0.00015392,2]
[399901504,1766836238364,-500.0,0.00015392,2]
[399901505,1766836238373,-500.0,0.00015392,2]
[399901506,1766836238383,-500.0,0.00015392,2]
[399901507,1766836238393,-500.0,0.00015392,2]
[399901508,1766836238403,-500.0,0.00015392,2]
[399901509,1766836238413,-500.0,0.00015392,2]
[399901510,1766836238423,-500.0,0.00015392,2]
[399901511,1766836238434,-500.0,0.00015392,2]
[399901512,1766836238444,-883369.59814278,0.00015393,2]
[399901513,1766836238454,-11451.05468104,0.00015393,2]
[399901514,1766836238464,-646.02,0.00015468,2]
[399901515,1766836238478,-2163.309,0.00015493,2]
[399901516,1766836238488,-255.0,0.00015493,2]
[399901517,1766836238498,-151.0,0.0001563,2]
[399901518,1766836238508,-151.0,0.00015642,2]
[399901519,1766836238518,-151.0,0.00015642,2]
[399901520,1766836238528,-2889.24462559,0.000157,2]
[399901521,1766836238538,-164.8406,0.000157,2]
[399901522,1766836238548,-173.0,0.00015739,2]
[399901523,1766836238558,-420.0,0.00015739,2]
[399901524,1766836238568,-420.0,0.00015739,2]
[399901525,1766836238578,-646.02,0.00015742,2]
[399901526,1766836238588,-153.72,0.00015795,2]
[399901527,1766836238598,-529.3746,0.000158,2]
[399901528,1766836238608,-1000.0,0.000158,2]
[399901529,1766836238619,-1680.0,0.00015808,2]
[399901530,1766836238630,-646.02,0.00016016,2]
[399901531,1766836238639,-646.04,0.0001629,2]
[399901532,1766836238649,-153.72,0.0001634,2]
[399901533,1766836238660,-153.72,0.00016885,2]
[399901534,1766836238670,-587.0,0.00017236,2]
[399901535,1766836238680,-587.0,0.00017236,2]
[399901536,1766836238690,-2351.0,0.00017389,2]
[399901537,1766836238701,-153.72,0.00017429,2]
[399901538,1766836238711,-153.72,0.00017974,2]
[399901539,1766836238722,-11451.054681,0.00018005,2]
[399901540,1766836238732,-166.66,0.00018076,2]
[399901541,1766836238743,-2889.24462551,0.00018278,2]
[399901542,1766836238753,-166.66,0.00018457,2]
[399901543,1766836238763,-153.72,0.00018519,2]
[399901544,1766836238773,-166.66,0.00018837,2]
[399901545,1766836238783,-823.0,0.00018876,2]
[399901546,1766836238794,-174.63,0.00018893,2]
[399901547,1766836238806,-784.13420803,0.00019,2]
[399901548,1766836238816,-999.0,0.00019091,3]
[399901549,1766836238826,-480.0,0.00019128,2]
[399901550,1766836238837,-166.66,0.00019218,2]
[399901551,1766836238848,-166.66,0.00019598,2]
[399901552,1766836238857,-166.66,0.00019979,2]
[399901553,1766836238867,-306.7,0.00020187,2]
[399901554,1766836238877,-11451.054681,0.00020617,2]
[399901555,1766836238888,-1000.0,0.00020682,2]
[399901556,1766836238898,-2889.24462551,0.00020856,2]
[399901557,1766836238908,-500.0,0.00021918,2]
[399901558,1766836238919,-615.43392194,0.00021918,2]
[399901559,1766836238929,-163.3,0.00022,2]
[399901560,1766836238942,-11451.054681,0.00023229,2]
[399901561,1766836238952,-2889.24462551,0.00023433,2]
[399901562,1766836238962,-454.57076409,0.00023536,2]
[399901563,1766836238972,-9999.99,0.00024174,2]
[399901564,1766836238983,-150.99,0.00024174,2]
[399901565,1766836238993,-7624.33,0.00024174,2]
[399901566,1766836239003,-150.99,0.00024174,2]
[399901567,1766836239013,-1606.82,0.00024174,2]
[399901568,1766836239024,-9999.99,0.00024174,2]
[399901569,1766836239034,-154.13,0.0002479,2]
[399901570,1766836239228,-3103.68456793,0.000248,2]
[399901571,1766836239276,-2781.16205156,0.000248,2]
[399901572,1766836239286,-153185.73672551,0.000248,3]
[399901573,1766836240002,-323.2430501,0.000248,3]
[399901574,1766836240052,-362.5,0.000248,3]
[399901575,1766836240064,-2250.6949861,0.000248,3]
[399901576,1766836240157,-5915.79999996,0.000248,3]
[399901577,1766836240170,-525.16036174,0.000248,3]
[399901578,1766836240316,-40932.31453005,0.000248,3]
[399901579,1766836240328,-500.0,0.000248,3]
[399901619,1766836243555,-24120.50890138,0.000248,3]
[399901620,1766836243567,-77935.17446178,0.000248,3]
[399901621,1766836244341,-83544.43310738,0.000248,3]
[399901622,1766836244351,-8469.46882878,0.0002489,3]
[399901623,1766836244361,-114888.637041,0.000249,3]
[399901624,1766836244417,-313.58303878,0.000249,3]
[399901639,1766836245971,-157.65642569,0.00015293,2]
[399901640,1766836245983,-588.74484266,0.000249,3]
[399901641,1766836245994,-409.55999997,0.000249,3]
[399901642,1766836246128,-23631.75523459,0.000249,3]
[399901643,1766836246138,-200.0,0.00025685,2]
[399901644,1766836246148,-207.4,0.00025685,2]
[399901645,1766836246158,-215.0738,0.00025685,2]
[399901646,1766836246169,-240.76287675,0.00025685,2]
[399901647,1766836246178,-2205.52016818,0.00025841,2]
[399901648,1766836246190,-262.67685879,0.00025841,2]
[399901666,1766836586386,256.31,0.00030137,120]
[399901699,1766837432028,-1611.81509603,0.00014524,2]
[399901700,1766837432077,-118.83190397,0.00014524,2]
[399901701,1766837432088,-270.0,0.00014524,2]
[399901702,1766837432099,-250.0,0.00014533,2]
[399901703,1766837432110,-375.3747467,0.00014542,2]
[399901704,1766837432121,-300.0,0.00014542,2]
[399901705,1766837432133,-157.65642569,0.00014684,2]
[399901706,1766837432144,-300.0,0.00014719,2]
[399901707,1766837432161,-128.51877461,0.00014719,2]
[399901708,1766837432175,-523.0,0.00014719,2]
[399901709,1766837432188,-542.62433888,0.00014719,2]
[399901710,1766837432202,-5.85688651,0.00014719,2]
[399901711,1766837432213,-199.35044945,0.0001472,2]
[399901712,1766837432224,-500.0,0.0001472,2]
[399901713,1766837432235,-267.99884447,0.0001472,2]
[399901714,1766837432247,-585.32478026,0.0001472,2]
[399901715,1766837432258,-300.63097523,0.0001472,2]
[399901716,1766837432269,-500.0,0.0001472,2]
[399901717,1766837432281,-257.95040227,0.0001472,2]
[399901718,1766837432292,-500.0,0.0001472,2]
[399901719,1766837432303,-340700.86651985,0.00014721,2]
[399901720,1766837432316,-2182.66831499,0.00014721,2]
[399901721,1766837432328,-84395.38865685,0.00014721,2]
[399901722,1766837432342,-74717.68710522,0.00014721,2]
[399901723,1766837432355,-1254.41808677,0.00014721,2]
[399901724,1766837432367,-1785.62710816,0.00014721,2]
[399901725,1766837432380,-264.22572062,0.00014721,2]
[399901726,1766837432395,-1690.72958078,0.00014721,2]
[399901734,1766837438154,-345.70008883,0.00014721,2]
[399901735,1766837438207,-224527.71250113,0.00014721,2]
[399901736,1766837438317,-421.96926458,0.00014721,2]
[399901767,1766837440226,-477.36844655,0.00014721,2]
[399901768,1766837440238,-312.81968657,0.00014721,2]
[399901769,1766837440249,-1236.47299378,0.00014721,2]
[399901770,1766837440283,-4175.11494527,0.00014721,2]
[399901771,1766837440295,-512.27802841,0.00014721,2]
[399901772,1766837440306,-6443.11814217,0.00014721,2]
[399901773,1766837440318,-4466.49254007,0.00014721,2]
[399901774,1766837440329,-306.069,0.00014721,2]
[399901775,1766837440390,-1043.55465848,0.00014721,2]
[399901776,1766837440401,-1339.99496718,0.00014721,2]
[399901777,1766837440413,-549.76957592,0.00014721,2]
[399901781,1766837444344,-502.99139351,0.00014721,2]
[399901782,1766837444396,-637.30701203,0.00014721,2]
[399901783,1766837444409,-1035.94218875,0.00014721,2]
[399901784,1766837444421,-1014.09508778,0.00014721,2]
[399901785,1766837444433,-633.92371775,0.00014721,2]
[399901786,1766837445087,-16015.93271301,0.00014721,2]
[399901787,1766837445140,-257.31707306,0.00014721,2]
[399901788,1766837445153,-2279.70584383,0.00014721,2]
[399901789,1766837445199,-254.13363879,0.00014721,2]
[399901790,1766837445251,-2145.14831811,0.00014721,2]
[399901838,1766838110148,179.62788257,0.00014,3]
[399901839,1766838119106,3103.68456793,0.00012948,2]
[399901840,1766838119275,2781.16205156,0.00012948,2]
[399901841,1766838123301,-269.0,0.00014424,2]
[399901842,1766838123326,-500.0,0.00014424,2]
[399901843,1766838123348,-1200.0,0.0001462,2]
[399901844,1766838123372,-300.0,0.0001462,2]
[399901845,1766838123395,-300.0,0.0001462,2]
[399901846,1766838123418,-870.352,0.00014621,2]
[399901847,1766838123440,-25027.1665,0.00014621,2]
[399901848,1766838123464,-1533.4815,0.00014621,2]
[399901849,1766838226352,153.75,9.121e-05,2]
[399901850,1766838226529,153.75,0.00011401,2]
[399901851,1766838234742,-153.75,0.00013681,2]
[399901852,1766838234764,-201.12732166,0.00014485,2]
[399901853,1766838234787,-670.0715,0.00014621,2]
[399901854,1766838234809,-10803.12920121,0.00014621,2]
[399901855,1766838234830,-490.96197713,0.00014719,2]
[399901880,1766838471220,5931.54319449,0.00012,2]
[399901886,1766838603770,200.0,0.00030137,120]
[399901897,1766838632187,-328.07,0.00013699,2]
[399901899,1766838632199,-157.65642569,0.00014519,2]
[399901900,1766838632209,-187.59919113,0.0001452,2]
[399901901,1766838632219,-500.0,0.0001452,2]
[399901902,1766838632230,-500.0,0.0001452,2]
[399901903,1766838632240,-500.0,0.0001452,2]
[399901904,1766838632250,-500.0,0.0001452,2]
[399901905,1766838632259,-166.77487002,0.0001452,2]
[399901906,1766838632270,-500.0,0.0001452,2]
[399901907,1766838632279,-500.0,0.0001452,2]
[399901908,1766838632289,-500.0,0.0001452,2]
[399901909,1766838632299,-500.0,0.0001452,2]
[399901910,1766838632309,-500.0,0.0001452,2]
[399901911,1766838632319,-500.0,0.0001452,2]
[399901912,1766838632329,-500.0,0.0001452,2]
[399901913,1766838632338,-500.0,0.0001452,2]
[399901914,1766838632348,-500.0,0.0001452,2]
[399901915,1766838632358,-1200.0,0.0001452,2]
[399901916,1766838632367,-300.0,0.0001452,2]
[399901917,1766838632378,-373601.37104767,0.00014521,2]
[399901918,1766838632390,-1707.23296372,0.00014521,2]
[399901919,1766838632401,-18977.67091982,0.00014521,2]
[399901920,1766838632412,-2354.96308394,0.00014521,2]
[399901921,1766838632425,-824.83,0.00014521,2]
[399901922,1766838632444,-5587.46274898,0.00014521,2]
[399901923,1766838632455,-282.33286881,0.00014521,2]
[399901924,1766838632467,-344.81,0.00014521,2]
[399901926,1766838632478,-2010.45162671,0.00014521,2]
[399901928,1766838632490,-4528.78207833,0.00014521,2]
[399901930,1766838632501,-1553.19050331,0.00014521,2]
[399901932,1766838632513,-2471.96661148,0.00014521,2]
[399901934,1766838632524,-3124.78462949,0.00014521,2]
[399901937,1766838632543,-1060.92728506,0.00014521,2]
[399901939,1766838632554,-860.0,0.00014521,2]
[399901940,1766838632566,-1342.64096061,0.00014521,2]
[399901941,1766838632578,-477.97880591,0.00014521,2]
[399901942,1766838632589,-990.02398659,0.00014521,2]
[399901943,1766838638304,-1443.45977058,0.00014521,2]
[399901944,1766838638364,-30868.43746983,0.00014521,2]
[399901945,1766838638423,-545586.68263916,0.00014521,2]
[399901946,1766838638435,-278.20483909,0.00014619,2]
[399901947,1766838638447,-509.03802287,0.00014719,2]